bitfinex-derivatives/quotes_ETHF0:USTF0_20250912
["timestamp","ask_amount","ask_price","bid_price","bid_amount"]
[1757693879503,0.8484876,4548.8,4548.7,0.6919]
[1757693879699,1.1473876,4548.8,4548.7,0.6919]
[1757693879904,1.3582876,4548.8,4548.7,0.6919]
[1757693880096,0.2989,4548.4,4548.1,0.5225]
[1757693880302,0.4957,4548.2,4548.1,0.4211]
[1757693880511,0.223,4549.4,4548.1,0.4211]
[1757693880812,0.65002686,4549.3,4548.2,0.3115]
[1757693881010,0.65002686,4549.2,4548.2,0.3115]
[1757693881212,0.65002686,4549.1,4548.2,0.3115]
[1757693881510,0.65002686,4549.0,4548.2,0.3115]
[1757693881804,0.65002686,4548.9,4548.2,0.3115]
[1757693882007,2.768945,4551.7,4548.0,0.1247]
[1757693882008,0.65002686,4548.8,4548.5,0.8573]
[1757693882207,0.65002686,4548.7,4548.6,0.3115]
[1757693882409,0.3987,4549.1,4549.0,0.6472]
[1757693882598,0.5249,4549.1,4548.5,0.1247]
[1757693882802,0.3987,4548.7,4548.6,0.211]
[1757693882999,1.04886044,4548.7,4548.6,0.7326]
[1757693886807,0.65016044,4548.7,4548.6,0.7326]
[1757693889705,1.17506044,4548.7,4548.6,0.3115]
[1757693889910,1.04886044,4548.7,4548.6,0.5225]
[1757693890311,1.0489178,4548.7,4548.6,0.7326]
[1757693890709,0.6502178,4548.7,4548.6,0.7326]
[1757693891814,0.0659,4549.3,4549.2,0.4211]
[1757693892014,0.0659,4549.3,4549.2,0.7326]
[1757693892216,0.65015697,4549.3,4549.2,0.7326]
[1757693893208,0.65015697,4549.3,4549.2,4.95242]
[1757693893415,0.3987,4550.6,4550.5,0.4362]
[1757693893617,0.3987,4550.6,4550.5,0.6472]
[1757693893816,0.3987,4550.6,4550.5,0.8573]
[1757693894018,1.37328801,4551.0,4550.9,0.7326]
[1757693894214,0.1968,4551.0,4550.9,0.7326]
[1757693896821,0.223,4551.2,4551.1,0.7326]
[1757693897019,0.1968,4551.2,4551.1,0.7326]
[1757693897318,0.3987,4551.2,4551.1,0.7326]
[1757693899217,0.5249,4551.2,4551.1,0.3115]
[1757693899417,0.3987,4550.6,4550.5,0.5458]
[1757693900021,0.3987,4550.6,4550.5,0.8573]
[1757693900613,0.1262,4551.1,4550.5,0.8573]
[1757693900916,0.3987,4551.1,4551.0,0.3357]
[1757693901120,0.3987,4551.1,4551.0,0.6472]
[1757693901916,0.0659,4551.5,4551.4,0.4211]
[1757693902117,0.0659,4551.5,4551.4,0.7326]
[1757693902321,0.1968,4551.6,4551.5,0.8573]
[1757693902718,0.3987,4551.2,4551.1,0.3115]
[1757693902918,0.5249,4551.2,4551.1,0.3115]
[1757693903130,0.1968,4551.2,4551.1,0.7326]
[1757693906228,0.4198,4551.6,4551.5,0.8573]
[1757693907028,1.06338911,4551.6,4551.5,0.8573]
[1757693910132,0.1968,4551.6,4551.5,0.8573]
[1757693910428,0.0659,4552.0,4551.8,0.6829]
[1757693910630,0.0659,4552.0,4551.9,0.2853]
[1757693910826,0.0659,4552.0,4551.9,0.6829]
[1757693911024,0.70676881,4552.0,4551.9,0.6829]
[1757693911329,0.0659,4552.0,4551.9,0.6829]
[1757693913135,31.893,4552.2,4551.9,0.6829]
[1757693913433,32.0875,4552.2,4552.1,0.6829]
[1757693913627,32.72828,4552.2,4552.1,0.6829]
[1757693914337,32.92308,4552.2,4552.1,0.6829]
[1757693920536,32.92208,4552.2,4552.1,0.6829]
[1757693920947,32.72728,4552.2,4552.1,0.6829]
[1757693922842,1.05728,4552.2,4552.1,0.6829]
[1757693924539,1.37798,4552.2,4552.1,0.4923]
[1757693924842,1.25208,4552.2,4552.1,0.4923]
[1757693925042,1.05728,4552.2,4552.1,0.6922]
[1757693925245,0.83528,4552.2,4552.1,0.6922]
[1757693928846,1.03668,4552.2,4552.1,0.6922]
[1757693930546,1.16258,4552.2,4552.1,0.2853]
[1757693930944,1.16258,4552.2,4552.1,0.4962]
[1757693932640,0.1259,4551.6,4551.5,0.1247]
[1757693932847,0.1259,4551.6,4551.5,0.3356]
[1757693932848,1.03988,4551.6,4551.5,0.3356]
[1757693933045,1.03988,4551.6,4551.5,0.5355]
[1757693933349,1.03988,4551.6,4551.5,0.8262]
[1757693933747,1.16578,4551.6,4551.5,0.4154]
[1757693934142,1.03988,4551.6,4551.5,0.8262]
[1757693934343,0.83848,4551.6,4551.5,0.8262]
[1757693937452,1.16528,4551.6,4551.5,0.6263]
[1757693937652,1.16528,4551.6,4551.5,0.4154]
[1757693938050,1.03988,4551.6,4551.0,0.1247]
[1757693938247,0.3957,4551.1,4551.0,0.318]
[1757693938560,1.16188,4551.1,4551.0,0.318]
[1757693938847,1.03648,4551.1,4551.0,0.8133]
[1757693939855,1.03648,4551.1,4551.0,0.3173]
[1757693943356,0.64078,4551.1,4549.7,0.222]
[1757693943565,0.64078,4551.0,4549.9,0.21976]
[1757693943751,0.64078,4550.9,4549.9,0.21976]
[1757693943952,0.64078,4550.8,4550.0,0.21974]
[1757693944155,0.64078,4550.7,4549.9,0.21974999]
[1757693944550,0.64078,4550.7,4550.0,0.21977]
[1757693944750,0.64078,4550.7,4549.9,0.21977]
[1757693945150,0.64078,4550.7,4550.0,0.21977]
[1757693945352,0.64078,4550.7,4549.9,0.21977]
[1757693945756,0.64078,4550.7,4550.0,0.21977]
[1757693946057,0.64078,4550.7,4549.9,0.21977]
[1757693946552,0.64078,4550.7,4550.0,0.21977]
[1757693946755,0.64078,4550.7,4549.9,0.21977]
[1757693947163,0.0659,4550.8,4549.9,0.21977]
[1757693947364,0.0659,4550.8,4550.0,0.21976]
[1757693947662,0.0659,4550.8,4549.9,0.21977]
[1757693948053,0.0659,4550.8,4550.0,0.21976]
[1757693948255,0.0659,4550.8,4549.9,0.21977]
[1757693948761,0.0659,4550.8,4550.0,0.21976]
[1757693948955,0.0659,4550.8,4549.9,0.21977]
[1757693949562,0.0659,4550.8,4550.0,0.21976]
[1757693949859,0.0659,4550.8,4549.9,0.21977]
[1757693950265,0.0659,4550.8,4550.0,0.21976]
[1757693950462,0.0659,4550.8,4549.9,0.21977]
[1757693950957,0.0659,4550.8,4550.0,0.21976]
[1757693951262,0.0659,4550.8,4549.9,0.21977]
[1757693951965,0.0659,4550.8,4549.7,0.222]
[1757693952164,0.0659,4550.8,4549.9,0.21977]
[1757693952363,1.17648801,4552.5,4550.5,0.39543]
[1757693952668,0.64986875,4552.4,4550.6,0.61741]
[1757693952958,0.64986875,4552.3,4550.7,0.222]
[1757693953156,0.64986875,4552.2,4550.7,0.222]
[1757693953355,0.64986875,4552.1,4550.8,0.2197]
[1757693953564,0.64986875,4552.0,4550.8,0.2197]
[1757693953764,31.652,4552.7,4550.7,0.222]
[1757693953765,0.64986875,4551.9,4550.7,0.222]
[1757693953965,31.652,4552.7,4550.7,0.222]
[1757693954153,0.649806,4552.6,4550.7,0.222]
[1757693954359,0.649806,4552.5,4550.8,0.2197]
[1757693954667,0.649806,4552.4,4550.7,0.222]
[1757693954967,0.649806,4552.3,4550.7,0.4417]
[1757693955162,0.649806,4552.2,4550.7,0.4417]
[1757693955364,0.649806,4552.1,4550.7,0.4417]
[1757693955563,0.649806,4552.0,4550.7,0.4417]
[1757693955767,0.649806,4551.9,4550.7,0.4417]
[1757693955965,31.652,4552.7,4550.7,0.4417]
[1757693956168,0.64979268,4552.6,4550.7,0.4417]
[1757693956468,0.64979268,4552.5,4550.7,0.4417]
[1757693956661,0.64979268,4552.4,4550.7,0.4417]
[1757693956969,0.64979268,4552.3,4550.7,0.222]
[1757693957168,0.64979268,4552.2,4550.7,0.61741]
[1757693957364,0.64979268,4552.1,4550.7,0.61741]
[1757693957563,0.64979268,4552.0,4550.7,0.222]
[1757693957764,0.64979268,4551.9,4550.7,0.222]
[1757693957963,0.0658,4552.6,4550.7,0.222]
[1757693958263,0.64976408,4552.5,4550.7,0.222]
[1757693958465,0.0658,4552.6,4550.7,0.222]
[1757693958466,0.64976408,4552.4,4550.7,0.222]
[1757693958665,0.64976408,4552.3,4550.8,0.2197]
[1757693958962,0.64976408,4552.2,4550.8,0.2197]
[1757693959162,0.64976408,4552.1,4550.2,0.39545]
[1757693959364,0.64976408,4552.0,4550.3,0.222]
[1757693959562,0.64976408,4551.9,4550.3,0.222]
[1757693959760,0.64976408,4551.8,4550.4,0.21971]
[1757693959971,0.21971,4552.5,4550.4,0.21971]
[1757693960166,0.86949486,4552.4,4550.4,0.21971]
[1757693960473,0.64978486,4552.3,4550.4,0.21971]
[1757693960771,0.64978486,4552.2,4550.5,0.222]
[1757693960971,0.64978486,4552.1,4550.5,0.222]
[1757693961166,0.64978486,4552.0,4550.0,0.39546]
[1757693961368,0.64978486,4551.9,4550.1,0.222]
[1757693961564,0.64978486,4551.8,4549.9,0.21972]
[1757693961870,0.64978486,4551.7,4550.0,0.222]
[1757693962065,0.64978486,4551.6,4550.0,0.44172]
[1757693962267,0.64978486,4551.5,4550.0,0.222]
[1757693962465,0.21972,4552.3,4550.0,0.222]
[1757693962666,0.64987446,4552.2,4550.0,0.222]
[1757693962868,0.64987446,4552.1,4550.0,0.222]
[1757693963066,0.64987446,4552.0,4550.0,0.44172]
[1757693963267,0.64987446,4551.9,4549.8,31.653]
[1757693963466,0.64987446,4551.8,4550.1,0.222]
[1757693963661,0.64987446,4551.7,4550.1,0.222]
[1757693963972,0.64987446,4551.6,4550.1,0.222]
[1757693964172,0.64987446,4551.5,4550.1,0.222]
[1757693964368,0.64987446,4551.4,4550.1,0.222]
[1757693964570,0.64987446,4551.3,4550.1,0.222]
[1757693964769,0.21972,4552.2,4550.1,0.222]
[1757693965070,0.64992184,4552.1,4550.1,0.222]
[1757693965270,0.64992184,4552.0,4550.1,0.222]
[1757693965471,0.64992184,4551.9,4550.1,0.222]
[1757693965671,0.64992184,4551.8,4550.1,0.222]
[1757693965874,0.64992184,4551.7,4550.1,0.222]
[1757693966085,0.64992184,4551.6,4550.1,0.222]
[1757693966286,0.64992184,4551.5,4550.1,0.222]
[1757693966586,0.64992184,4551.4,4550.1,0.222]
[1757693966788,0.64992184,4551.3,4550.1,0.222]
[1757693966983,0.64992184,4551.2,4550.1,0.222]
[1757693967186,0.21972,4552.3,4550.1,0.222]
[1757693967384,0.65165603,4552.2,4549.8,31.653]
[1757693967590,0.65165603,4552.1,4548.7,0.39558]
[1757693967889,1.39625802,4552.1,4548.8,0.023]
[1757693968083,0.87141603,4552.0,4548.8,0.63833]
[1757693968280,0.65165603,4551.9,4548.9,0.39556]
[1757693968480,0.87141603,4551.9,4548.9,0.61532]
[1757693968688,0.87141603,4551.8,4549.0,0.21976]
[1757693968888,0.65165603,4551.7,4549.0,0.21976]
[1757693969191,0.65165603,4551.6,4549.1,0.44174999]
[1757693969383,0.77165603,4551.5,4549.1,0.222]
[1757693969590,0.65165603,4551.4,4549.2,0.21974999]
[1757693970089,0.21977001,4551.3,4549.3,0.21977]
[1757693970283,0.65165603,4551.2,4549.2,0.21977]
[1757693970788,0.65165603,4551.1,4549.3,0.21977]
[1757693970982,0.65165603,4551.1,4549.1,0.222]
[1757693970983,0.65165603,4551.0,4549.5,0.39551]
[1757693971183,0.036,4551.9,4549.5,0.39551]
[1757693971382,0.65161852,4551.8,4549.6,0.21974999]
[1757693971591,0.65161852,4551.7,4549.4,0.39552]
[1757693971791,0.65161852,4551.6,4549.5,0.61751]
[1757693972092,0.65161852,4551.5,4549.5,0.61751]
[1757693972385,0.65161852,4551.4,4549.6,0.21974999]
[1757693972591,0.65161852,4551.3,4549.6,0.21974999]
[1757693972886,0.65161852,4551.2,4549.7,0.21974]
[1757693973189,0.65161852,4551.1,4549.7,0.3955]
[1757693973388,0.65161852,4551.0,4549.8,0.21974]
[1757693973580,0.07,4552.1,4549.6,0.61524999]
[1757693973781,0.65166723,4552.0,4549.6,0.61524999]
[1757693973985,0.65166723,4551.9,4549.7,0.21974]
[1757693974292,0.65166723,4551.9,4549.6,0.21974]
[1757693974790,0.65166723,4551.8,4549.7,0.61524]
[1757693974989,0.65166723,4551.7,4549.7,0.3955]
[1757693975181,0.65166723,4551.6,4549.8,0.21974]
[1757693975377,0.65166723,4551.5,4549.8,0.21974]
[1757693975586,0.65166723,4551.4,4549.9,0.21974]
[1757693975786,0.65166723,4551.3,4549.6,0.21974]
[1757693975989,0.65166723,4551.2,4549.6,0.21974]
[1757693976194,0.65166723,4551.1,4549.5,0.61751]
[1757693976490,0.65166723,4551.0,4549.6,0.21977]
[1757693976691,0.65166723,4550.9,4549.7,0.3955]
[1757693976889,0.21974,4552.0,4549.5,0.61751]
[1757693977091,0.87147788,4551.9,4549.6,0.21974]
[1757693977284,0.65173788,4551.8,4549.6,0.21974]
[1757693977485,0.65173788,4551.7,4549.5,0.61751]
[1757693977781,0.65173788,4551.6,4549.6,0.21974]
[1757693977982,0.65173788,4551.5,4549.6,0.21974]
[1757693978182,0.65173788,4551.4,4549.7,0.21974]
[1757693978389,0.65173788,4551.3,4549.5,0.61751]
[1757693978589,0.65173788,4551.2,4549.6,0.21974]
[1757693978791,0.65173788,4551.1,4549.6,0.21974]
[1757693978994,0.65173788,4551.0,4549.5,0.61751]
[1757693979192,0.07,4552.1,4549.5,0.61751]
[1757693979193,0.65173788,4550.9,4549.6,0.21974]
[1757693979392,0.21974,4552.0,4549.6,0.21974]
[1757693979588,0.87153335,4551.9,4549.5,0.61751]
[1757693979787,0.65179335,4551.8,4549.6,0.21974]
[1757693979994,0.65179335,4551.7,4549.6,0.21974]
[1757693980190,0.65179335,4551.6,4549.5,0.222]
[1757693980391,0.65179335,4551.5,4549.9,0.39548]
[1757693980592,0.65179335,4551.4,4549.7,0.98874]
[1757693980895,0.21973,4552.5,4549.9,0.39547]
[1757693981190,0.65176309,4552.4,4549.9,0.39547]
[1757693981397,0.65176309,4552.3,4550.0,0.21972]
[1757693981592,0.87148309,4552.3,4550.0,0.21972]
[1757693981794,0.65176309,4552.2,4549.9,0.39547]
[1757693982094,0.65176309,4552.1,4550.0,0.61519]
[1757693982288,0.65176309,4552.0,4550.0,0.39547]
[1757693982489,0.65176309,4551.9,4550.1,0.21972]
[1757693982795,0.65176309,4551.8,4550.1,0.21972]
[1757693982990,0.65176309,4551.7,4550.0,0.39547]
[1757693983197,0.65176309,4551.6,4550.1,0.61518]
[1757693983399,0.65176309,4551.5,4549.9,0.61519]
[1757693983592,0.65176309,4551.4,4550.0,0.39547]
[1757693983897,0.65176309,4551.3,4550.0,0.61519]
[1757693984098,1.24228801,4552.6,4550.1,0.21972]
[1757693984292,0.87166079,4552.5,4550.1,0.21972]
[1757693984494,0.65194079,4552.4,4550.0,0.39547]
[1757693984696,0.65194079,4552.3,4550.1,0.61518]
[1757693984895,0.65194079,4552.2,4550.5,0.39542]
[1757693985090,0.65194079,4552.1,4550.4,0.39544]
[1757693985396,0.65194079,4552.0,4550.3,0.61514]
[1757693985596,0.65194079,4551.9,4550.5,0.39543]
[1757693985792,0.65194079,4551.8,4550.5,0.39543]
[1757693985993,0.65194079,4551.7,4550.5,0.39543]
[1757693986298,0.2197,4552.9,4550.6,0.2197]
[1757693986493,0.64851144,4552.8,4550.6,0.2197]
[1757693986696,0.64851144,4552.7,4550.7,0.2197]
[1757693986896,0.64851144,4552.6,4550.6,0.2197]
[1757693987097,0.64851144,4552.5,4550.6,0.61512]
[1757693987298,0.64851144,4552.4,4550.4,0.39543]
[1757693987499,0.64851144,4552.4,4550.5,0.39543]
[1757693987992,0.64851144,4552.3,4550.5,0.39543]
[1757693988197,0.64851144,4552.2,4550.6,0.21971]
[1757693988395,0.64851144,4552.1,4550.6,0.21971]
[1757693988592,0.64851144,4552.1,4550.6,0.39542]
[1757693988794,0.64851144,4552.1,4550.7,0.21971]
[1757693988994,0.64851144,4552.1,4550.4,0.39543]
[1757693989399,0.64851144,4552.1,4550.5,0.21972]
[1757693989597,0.64851144,4552.1,4550.3,0.21972]
[1757693989798,0.64851144,4552.1,4550.3,0.61516]
[1757693989998,0.64851144,4552.1,4550.4,0.21972]
[1757693990604,0.64851144,4552.1,4550.5,0.44172]
[1757693990802,0.64851144,4552.1,4550.3,0.39544]
[1757693991003,0.64851144,4552.1,4550.4,0.222]
[1757693991204,0.64851144,4552.1,4550.4,0.44172]
[1757693991404,0.64851144,4552.1,4550.5,0.21972]
[1757693991899,0.64851144,4552.1,4550.6,0.21972]
[1757693992105,0.64851144,4552.1,4550.5,0.21972]
[1757693992602,0.64851144,4552.1,4550.6,0.222]
[1757693994601,0.64851144,4552.0,4550.6,0.222]
[1757693994799,0.64851144,4551.9,4550.6,0.222]
[1757693994999,0.64851144,4551.8,4550.6,0.44169]
[1757693995201,0.64851144,4551.7,4550.6,0.44169]
[1757693995505,0.21969,4552.9,4550.6,0.44169]
[1757693995693,0.648395,4552.8,4550.6,0.44169]
[1757693995899,0.648395,4552.7,4550.7,0.6151]
[1757693996104,0.648395,4552.6,4550.7,0.21969]
[1757693996305,0.648395,4552.5,4550.7,0.21969]
[1757693996494,0.648395,4552.4,4550.7,0.21969]
[1757693996699,0.648395,4552.3,4550.6,0.222]
[1757693996894,0.648395,4552.2,4550.7,0.2197]
[1757693997107,0.648395,4552.1,4550.7,0.2197]
[1757693997408,0.648395,4552.0,4550.8,0.222]
[1757693997608,0.648395,4551.9,4550.9,0.222]
[1757693997801,0.648395,4551.8,4550.9,0.222]
[1757693998003,0.21969,4552.8,4550.9,0.222]
[1757693998306,0.86887237,4552.7,4550.9,0.222]
[1757693998509,0.64918237,4552.6,4550.9,0.222]
[1757693998700,0.2197,4552.5,4550.9,0.222]
[1757693999006,0.64918237,4552.4,4550.2,0.39545]
[1757693999205,0.64918237,4552.4,4550.9,0.031]
[1757693999407,0.64918237,4552.3,4550.9,0.031]
[1757693999606,0.64918237,4552.2,4550.9,0.031]
[1757693999807,0.64918237,4552.1,4550.9,0.031]
[1757694000004,0.64918237,4552.0,4550.9,0.031]
[1757694000208,0.64918237,4551.9,4550.9,0.031]
[1757694000402,0.64918237,4551.8,4549.8,31.653]
[1757694000609,0.64918237,4551.7,4550.2,0.39545]
[1757694000909,0.0658,4552.7,4550.4,0.39544]
[1757694001112,0.86905728,4552.6,4550.2,0.39545]
[1757694001303,0.64933728,4552.5,4550.0,0.21972]
[1757694001608,0.64933728,4552.5,4549.9,0.222]
[1757694001609,0.86905728,4552.5,4550.2,0.39545]
[1757694001812,0.64933728,4552.4,4550.3,0.39544]
[1757694002107,0.64933728,4552.3,4550.3,0.39544]
[1757694002408,0.64933728,4552.2,4550.4,0.21971]
[1757694002603,0.64933728,4552.1,4550.4,0.61515]
[1757694002808,0.64933728,4552.0,4550.4,0.39544]
[1757694003009,0.64933728,4551.9,4550.5,0.21971]
[1757694003206,0.64933728,4551.8,4550.2,0.39545]
[1757694003411,0.1259,4551.6,4550.4,0.68593]
[1757694003712,0.1259,4551.6,4550.6,0.2905]
[1757694004010,0.1259,4551.6,4550.8,0.2905]
[1757694004208,0.3902,4551.6,4551.5,0.3141]
[1757694004508,0.3902,4551.6,4551.5,0.8052]
[1757694007012,0.5161,4551.6,4551.5,0.8052]
[1757694007513,0.3902,4551.6,4551.5,0.8052]
[1757694008013,0.5161,4551.6,4551.5,0.6046]
[1757694008206,1.16384356,4551.6,4551.5,0.6046]
[1757694008510,1.03794356,4551.6,4551.5,0.6046]
[1757694008713,0.3902,4551.6,4551.5,0.8052]
[1757694009516,1.03812143,4551.6,4551.5,0.8052]
[1757694010411,1.03812143,4551.6,4551.5,0.4114]
[1757694010412,1.16402143,4551.6,4551.5,0.4114]
[1757694010814,0.64792143,4551.6,4551.5,0.8052]
[1757694013712,0.0659,4552.0,4551.5,4.5147]
[1757694013914,0.0659,4552.0,4551.6,0.2905]
[1757694014116,1.30238801,4553.3,4551.6,0.2905]
[1757694014410,0.063,4553.0,4551.6,0.2905]
[1757694014609,0.1259,4552.8,4551.6,0.2905]
[1757694014810,0.1259,4552.6,4551.6,0.2905]
[1757694015015,0.64846527,4552.5,4552.0,0.1209]
[1757694015217,0.1992,4552.1,4552.0,0.8052]
[1757694015910,0.84766527,4552.1,4552.0,0.8052]
[1757694016510,1.03866527,4552.1,4552.0,0.8052]
[1757694016716,1.03866527,4552.1,4552.0,0.2905]
[1757694016717,1.16456527,4552.1,4552.0,0.2905]
[1757694017206,0.3902,4551.7,4551.6,0.2905]
[1757694017413,0.5161,4551.7,4551.6,0.2905]
[1757694017607,0.0658,4552.9,4551.6,0.4837]
[1757694017803,0.86765467,4552.8,4551.7,0.1932]
[1757694018008,0.64798467,4552.7,4551.8,0.2905]
[1757694018208,0.64798467,4552.6,4551.8,0.2905]
[1757694018413,0.64798467,4552.5,4551.8,0.2905]
[1757694018616,0.64798467,4552.4,4552.0,0.1209]
[1757694018808,0.0658,4552.9,4552.0,0.1209]
[1757694018809,0.64798467,4552.3,4552.1,0.2905]
[1757694019010,0.64798467,4552.2,4552.1,0.2905]
[1757694019412,4.64798467,4552.2,4551.8,0.2905]
[1757694019614,0.64798467,4552.1,4551.6,0.2905]
[1757694019814,0.64798467,4552.0,4551.6,0.2905]
[1757694020014,0.64798467,4551.9,4551.6,0.1932]
[1757694020213,0.64798467,4551.8,4551.7,0.6843]
[1757694020408,0.64798467,4552.4,4551.7,0.3938]
[1757694020616,0.64798467,4552.4,4552.0,0.1209]
[1757694020817,0.64798467,4552.4,4552.1,0.2905]
[1757694021621,0.64798467,4552.4,4552.3,0.4837]
[1757694021823,0.2878,4552.9,4552.5,0.1209]
[1757694022115,0.64798323,4552.8,4552.6,0.2905]
[1757694022320,0.64798323,4552.7,4552.6,0.2905]
[1757694026225,0.64798323,4552.7,4552.6,0.4837]
[1757694028116,0.64798323,4552.7,4552.6,0.2905]
[1757694032017,4.64798323,4552.7,4552.5,0.1209]
[1757694032222,0.222,4553.3,4552.3,0.2892]
[1757694032223,4.64798323,4552.6,4552.3,0.2892]
[1757694032422,0.64798323,4552.5,4552.0,0.1209]
[1757694032731,0.64798323,4552.4,4552.1,0.2892]
[1757694033021,0.64798323,4552.3,4552.1,0.2892]
[1757694033226,0.64798323,4552.2,4552.1,0.2892]
[1757694033624,0.64798323,4552.8,4552.1,0.2892]
[1757694033921,0.64798323,4552.7,4552.1,0.2892]
[1757694034128,0.64798323,4552.6,4552.5,0.5177]
[1757694034424,0.222,4552.9,4552.5,0.5177]
[1757694034619,0.64798323,4552.8,4552.6,0.4809]
[1757694034922,0.64798323,4552.8,4552.7,0.2892]
[1757694036021,0.64798323,4552.8,4552.7,0.6891]
[1757694036219,0.64798323,4552.9,4552.7,0.3999]
[1757694036727,0.64798323,4552.9,4552.8,0.2892]
[1757694036919,0.64798323,4552.9,4552.8,0.4809]
[1757694038226,0.64798323,4552.9,4552.8,0.2892]
[1757694039326,1.82447124,4552.9,4552.8,0.2892]
[1757694040623,5.82447124,4552.9,4552.6,0.2892]
[1757694040825,0.64798323,4552.8,4552.6,0.2892]
[1757694041024,0.64798323,4552.7,4552.6,0.2892]
[1757694041220,1.82447124,4552.9,4552.6,0.2892]
[1757694041421,0.64798323,4552.9,4552.7,0.1917]
[1757694041625,0.64798323,4552.8,4552.7,0.3999]
[1757694041817,0.86998323,4552.8,4552.7,0.3999]
[1757694042016,0.86998323,4552.8,4552.7,0.6891]
[1757694043420,0.86998323,4552.8,4552.7,0.2892]
[1757694046328,2.04647124,4552.8,4552.7,0.2892]
[1757694047731,0.86998323,4552.8,4552.7,0.2892]
[1757694048433,2.04647124,4552.8,4552.7,0.2892]
[1757694053332,0.86998323,4552.8,4552.5,0.1178]
[1757694053539,1.83389844,4552.7,4552.5,0.1178]
[1757694054632,0.64798323,4552.6,4552.5,0.1178]
[1757694054832,0.64798323,4552.7,4552.5,0.1178]
[1757694055437,0.64798323,4552.7,4552.6,0.3067]
[1757694055639,0.6316,4552.1,4551.5,0.1209]
[1757694055935,0.6316,4552.1,4550.5,0.1803]
[1757694055936,0.7076,4551.6,4550.5,0.1233]
[1757694056237,0.7076,4551.1,4551.0,0.324]
[1757694056438,1.35558323,4551.1,4551.0,0.324]
[1757694057137,1.35558323,4551.1,4551.0,0.5287]
[1757694057737,1.35558323,4551.1,4551.0,0.8204]
[1757694058639,0.64798323,4551.1,4551.0,4.8204]
[1757694058938,0.222,4551.5,4551.4,0.392]
[1757694059139,0.222,4551.5,4551.4,0.6837]
[1757694059338,0.87404896,4551.5,4551.4,0.6837]
[1757694059533,1.07814896,4551.5,4551.4,0.6837]
[1757694060432,0.65204896,4551.5,4551.4,0.6837]
[1757694062340,0.85614896,4551.5,4551.4,0.6837]
[1757694063448,1.04624896,4551.5,4551.4,0.6837]
[1757694063740,1.33784896,4551.5,4551.4,0.2917]
[1757694064038,1.33784896,4551.5,4551.1,0.2917]
[1757694064243,0.2041,4550.2,4550.1,0.4872]
[1757694064541,0.3942,4550.2,4550.1,0.6837]
[1757694064741,1.04588637,4550.2,4550.1,0.6837]
[1757694065140,0.6858,4550.2,4550.1,0.6837]
[1757694065336,1.33718375,4550.2,4550.1,0.2917]
[1757694065734,1.33718375,4550.2,4549.6,0.2917]
[1757694065935,0.6858,4550.2,4550.1,0.4872]
[1757694066134,1.33721135,4550.2,4550.1,0.4872]
[1757694066341,1.33721135,4550.2,4549.6,0.2917]
[1757694066544,0.3942,4549.7,4549.6,0.4872]
[1757694067138,1.33681784,4549.7,4549.6,0.4872]
[1757694067348,1.33640343,4549.7,4549.1,0.2917]
[1757694067545,0.6858,4549.7,4549.1,0.2917]
[1757694067848,0.2916,4550.2,4549.7,0.2917]
[1757694068037,0.3942,4549.8,4549.7,0.6837]
[1757694068239,1.33639639,4549.8,4549.7,0.4872]
[1757694068442,1.33639639,4549.8,4549.1,0.2917]
[1757694068643,0.6858,4549.8,4549.1,0.2917]
[1757694068842,0.3942,4549.2,4549.1,0.4872]
[1757694069147,0.3942,4549.2,4549.1,0.6837]
[1757694071044,0.6858,4549.2,4549.1,0.2917]
[1757694071347,0.6858,4549.2,4548.6,0.2917]
[1757694072047,0.6858,4549.2,4549.1,0.4872]
[1757694073047,0.6858,4549.2,4549.1,0.6837]
[1757694073245,0.6858,4549.2,4549.1,0.4872]
[1757694073448,0.6858,4549.2,4548.6,0.2917]
[1757694073943,0.90563001,4549.2,4548.6,0.2917]
[1757694074143,0.6858,4549.2,4548.1,0.2917]
[1757694074344,0.3942,4548.2,4548.1,0.4872]
[1757694074645,0.6858,4548.2,4548.1,0.2917]
[1757694075042,0.3942,4548.2,4548.1,0.6837]
[1757694075240,0.2891,4548.6,4548.5,0.8049]
[1757694075545,0.222,4548.9,4548.6,0.2917]
[1757694075755,0.6162,4548.9,4548.8,0.6837]
[1757694076045,0.4261,4549.2,4549.1,0.392]
[1757694076236,0.4261,4549.2,4549.1,0.6837]
[1757694076439,0.6162,4549.2,4549.1,0.6837]
[1757694076951,0.9078,4549.2,4549.1,0.4872]
[1757694077544,1.5561291,4549.2,4549.1,0.4872]
[1757694078551,1.2645291,4549.2,4549.1,0.6837]
[1757694078944,1.5561291,4549.2,4549.1,0.6837]
[1757694079454,0.6483291,4549.2,4549.1,0.6837]
[1757694079656,0.8524291,4549.2,4549.1,0.6837]
[1757694079845,1.0425291,4549.2,4549.1,0.6837]
[1757694080045,1.3341291,4549.2,4549.1,0.6837]
[1757694081546,1.3341291,4549.2,4549.1,0.4872]
[1757694082755,1.0425291,4549.2,4549.1,0.6837]
[1757694082950,0.8524291,4549.2,4549.1,0.6837]
[1757694083253,0.27,4549.6,4549.5,0.8049]
[1757694083442,0.4601,4549.6,4549.5,0.8049]
[1757694083643,1.33448606,4549.6,4549.5,0.8049]
[1757694083848,1.33448606,4549.6,4549.5,0.2917]
[1757694084051,0.3942,4549.1,4549.0,0.1212]
[1757694084355,0.6858,4549.1,4549.0,0.6084]
[1757694084545,0.3942,4549.1,4549.0,0.8049]
[1757694084943,0.2041,4549.1,4549.0,0.8049]
[1757694085145,0.1108,4550.0,4549.1,0.2917]
[1757694085356,0.2916,4549.8,4549.1,0.2917]
[1757694085551,1.04352632,4549.7,4549.6,0.6837]
[1757694085747,1.55712632,4549.7,4549.6,0.6837]
[1757694086148,1.55712632,4549.7,4549.6,0.2917]
[1757694086349,0.85342632,4549.7,4549.6,0.6837]
[1757694086851,0.64932632,4549.7,4549.6,0.6837]